bitfinex-derivatives/quotes_SOLF0:USTF0_20250919
["timestamp","ask_amount","ask_price","bid_price","bid_amount"]
[1758294093823,7.0,239.26,239.22,12.89807288]
[1758294094020,2.97804549,239.25,239.16,9.5313]
[1758294094221,2.97804549,239.25,239.16,5.77]
[1758294094423,2.97804549,239.24,239.23,12.89807288]
[1758294094623,2.97804549,239.26,239.16,5.77]
[1758294094822,2.97804549,239.26,239.23,12.89807288]
[1758294095922,2.97804549,239.26,239.16,5.77]
[1758294096423,2.97804549,239.26,239.1,5.77]
[1758294096625,2.97804549,239.26,239.17,12.89807288]
[1758294096821,3.7599,239.25,239.11,3.7621]
[1758294097017,2.97804549,239.24,239.18,12.89807288]
[1758294097425,9.97804549,239.23,239.18,12.89807288]
[1758294097621,2.97804549,239.22,239.18,12.89807288]
[1758294097826,2.97804549,239.22,239.11,5.77]
[1758294098026,2.97804549,239.21,239.11,5.77]
[1758294098228,116.64,239.22,239.2,12.89807288]
[1758294098422,4.45815107,239.37,239.21,58.4978]
[1758294098628,116.98,239.36,239.3,12.89807288]
[1758294099025,116.98,239.36,239.22,5.77]
[1758294099225,116.98,239.36,239.3,12.89807288]
[1758294099622,116.98,239.36,239.22,5.77]
[1758294099828,7.0,239.35,239.13,5.77]
[1758294100125,7.0,239.33,239.25,12.89807288]
[1758294100525,7.0,239.33,239.18,5.77]
[1758294100723,7.0,239.33,239.25,12.89807288]
[1758294100926,116.74,239.32,239.26,12.89807288]
[1758294101230,7.0,239.33,239.28,12.89807288]
[1758294101231,116.74,239.31,239.28,12.89807288]
[1758294101830,7.0,239.39,239.23,5.77]
[1758294102028,116.72,239.38,239.32,12.89807288]
[1758294103231,116.72,239.38,239.33,12.89807288]
[1758294103531,7.0,239.37,239.33,12.89807288]
[1758294103733,7.0,239.37,239.23,5.77]
[1758294103930,7.0,239.37,239.33,12.89807288]
[1758294104834,116.72,239.38,239.16,3.6901754]
[1758294104835,116.32,239.36,239.34,12.89807288]
[1758294105034,116.32,239.35,239.34,12.89807288]
[1758294105934,326.8101754,239.43,239.34,12.89807288]
[1758294106136,116.28,239.42,239.34,12.89807288]
[1758294106330,116.12,239.41,239.34,12.89807288]
[1758294108140,326.8101754,239.43,239.34,12.89807288]
[1758294108441,115.86,239.42,239.34,12.89807288]
[1758294108640,115.86,239.41,239.35,12.89807288]
[1758294108840,331.26832647,239.43,239.35,12.89807288]
[1758294109041,115.78,239.42,239.28,5.77]
[1758294109244,115.78,239.42,239.35,12.89807288]
[1758294109634,115.78,239.42,239.28,5.77]
[1758294109836,115.78,239.42,239.35,12.89807288]
[1758294110037,115.74,239.41,239.28,5.77]
[1758294110543,7.0,239.39,239.17,5.77]
[1758294110746,7.43011508,239.38,239.3,12.89807288]
[1758294111140,7.43011508,239.38,239.22,5.77]
[1758294111342,7.43011508,239.37,239.3,12.89807288]
[1758294111541,118.59196401,239.36,239.3,12.89807288]
[1758294111744,7.0,239.34,239.3,12.89807288]
[1758294111945,7.0,239.32,239.3,12.89807288]
[1758294112146,118.55196401,239.31,239.3,12.89807288]
[1758294112345,2.97196401,239.31,239.22,5.77]
[1758294112546,105.77196401,239.3,239.22,5.77]
[1758294112845,2.97196401,239.29,239.22,5.77]
[1758294113247,118.37196401,239.29,239.28,12.89807288]
[1758294116439,125.37196401,239.29,239.16,5.77]
[1758294116641,4.45815107,239.27,239.16,5.77]
[1758294116845,129.77011508,239.26,239.09,5.77]
[1758294117046,2.97196401,239.25,239.09,5.77]
[1758294117246,118.31196401,239.24,239.09,5.77]
[1758294117446,7.0,239.22,239.09,5.77]
[1758294117652,2.97196401,239.21,239.09,5.77]
[1758294117850,9.97196401,239.21,239.17,12.89807288]
[1758294118052,2.97196401,239.2,239.17,12.89807288]
[1758294118252,6.58,239.19,239.09,5.77]
[1758294118550,125.06196401,239.18,239.15,12.89807288]
[1758294118751,118.31196401,239.17,239.15,12.89807288]
[1758294118946,2.97196401,239.16,239.15,12.89807288]
[1758294119550,118.31196401,239.16,239.15,12.89807288]
[1758294120149,2.97196401,239.16,239.15,12.89807288]
[1758294120550,2.97196401,239.22,239.15,12.89807288]
[1758294120751,118.33196401,239.21,239.09,5.77]
[1758294120951,9.72196401,239.2,239.12,12.89807288]
[1758294121249,6.75,239.17,239.11,12.89807288]
[1758294121454,9.72196401,239.16,239.03,5.76]
[1758294121655,118.33196401,239.15,238.99,5.76]
[1758294121853,2.97196401,239.14,238.99,5.76]
[1758294122050,2.97196401,239.13,238.99,5.76]
[1758294122256,6.75,239.22,239.03,3.6901754]
[1758294122551,17.22,239.18,239.04,5.76]
[1758294122751,2.9810089,239.17,239.04,5.76]
[1758294123057,10.52464455,239.28,239.04,5.76]
[1758294123058,2.9810089,239.16,239.04,5.76]
[1758294123252,95.84,239.24,239.04,5.76]
[1758294123450,2.9826654,239.23,239.15,5.76]
[1758294123646,2.9826654,239.22,239.15,5.76]
[1758294123848,2.9826654,239.21,239.15,5.76]
[1758294124055,2.9826654,239.2,239.09,5.76]
[1758294124250,2.9826654,239.19,239.09,5.76]
[1758294124555,2.9826654,239.18,239.09,5.76]
[1758294124754,2.9826654,239.17,239.09,5.76]
[1758294124957,115.36,239.25,239.09,5.76]
[1758294125256,2.98370993,239.24,239.23,12.89807288]
[1758294125656,9.73370993,239.24,239.23,12.89807288]
[1758294126446,9.73370993,239.24,239.14,5.76]
[1758294126650,6.75,239.22,239.08,5.76]
[1758294126858,2.98370993,239.21,239.15,12.89807288]
[1758294127051,115.36,239.2,239.08,5.76]
[1758294127254,118.34370993,239.19,239.17,12.89807288]
[1758294127552,2.98370993,239.18,239.17,12.89807288]
[1758294128159,115.36,239.21,239.17,18.65807288]
[1758294128356,2.98370993,239.2,239.0,12.52]
[1758294128554,2.98370993,239.2,239.04,5.76]
[1758294128959,2.98370993,239.2,239.19,12.89807288]
[1758294130459,115.36,239.23,239.19,12.89807288]
[1758294130763,2.98370993,239.22,239.21,12.89807288]
[1758294131055,118.34370993,239.22,239.09,5.76]
[1758294131260,2.98370993,239.21,239.17,12.89807288]
[1758294131656,2.98370993,239.21,239.18,12.89807288]
[1758294132056,118.32370993,239.2,239.09,5.76]
[1758294132357,2.98370993,239.19,239.18,12.89807288]
[1758294132753,2.98370993,239.19,239.09,5.76]
[1758294132956,6.75,239.23,239.18,12.89807288]
[1758294133159,104.86828106,239.22,239.18,12.89807288]
[1758294133460,6.75,239.2,238.96,5.76]
[1758294133651,2.98828106,239.19,239.03,5.76]
[1758294133850,2.98828106,239.18,239.1,12.89807288]
[1758294134059,2.98828106,239.17,239.1,12.89807288]
[1758294134259,11.20815107,239.2,239.1,12.89807288]
[1758294134260,118.32828106,239.16,239.1,12.89807288]
[1758294134463,9.73828106,239.15,239.1,12.89807288]
[1758294134661,2.98828106,239.14,239.11,12.89807288]
[1758294134851,2.98828106,239.13,239.11,12.89807288]
[1758294135057,2.98828106,239.12,239.03,5.76]
[1758294135353,2.98828106,239.11,239.03,5.76]
[1758294135552,2.98581508,239.1,239.03,5.76]
[1758294135757,2.98581508,239.09,239.03,5.76]
[1758294135960,2.98581508,239.08,238.95,5.76]
[1758294136263,9.73581508,239.07,239.03,12.89807288]
[1758294136564,6.75,239.05,238.69,5.76]
[1758294136859,6.75,239.05,238.98,12.89807288]
[1758294136860,8.98581508,239.04,238.98,12.89807288]
[1758294137158,6.75,239.02,238.98,12.89807288]
[1758294137361,2.98581508,239.01,238.92,5.76]
[1758294137565,2.98581508,239.0,238.97,12.89807288]
[1758294137756,2.97911079,238.99,238.97,12.89807288]
[1758294137958,15.72,239.01,238.97,12.89807288]
[1758294138162,6.75,238.99,238.71,5.76]
[1758294138360,6.75,238.97,238.8,5.76]
[1758294138560,2.97911801,238.96,238.8,5.76]
[1758294138864,2.97911801,238.95,238.91,12.89807288]
[1758294139063,2.97911801,238.94,238.86,5.76]
[1758294139262,2.97911801,238.93,238.86,5.76]
[1758294139566,6.75,238.97,238.86,5.76]
[1758294139767,2.96878353,238.96,238.92,12.89807288]
[1758294139964,2.96878353,238.95,238.92,12.89807288]
[1758294140264,6.75,239.03,238.86,5.76]
[1758294140561,2.9662078,239.02,238.86,5.76]
[1758294140766,2.9662078,239.01,238.93,5.76]
[1758294140968,6.75,239.08,238.93,5.76]
[1758294141260,118.32692235,239.07,238.99,12.89807288]
[1758294141460,2.96692235,239.06,238.93,5.76]
[1758294141663,2.96692235,239.05,239.0,12.89807288]
[1758294141862,2.96692235,239.04,239.0,12.89807288]
[1758294142063,2.96692235,239.03,238.93,5.76]
[1758294142262,122.11,239.08,239.02,12.89807288]
[1758294142464,9.71463219,239.07,239.02,12.89807288]
[1758294142662,2.96463219,239.06,238.93,5.76]
[1758294142862,2.96463219,239.06,238.57,10.24390747]
[1758294142863,6.75,238.96,238.57,10.24390747]
[1758294143063,118.32463219,238.95,238.6,6.6]
[1758294143364,6.75,238.93,238.57,10.24390747]
[1758294143659,6.75,238.91,238.64,6.6]
[1758294143963,6.75,238.89,238.64,19.12]
[1758294144167,2.96463219,238.88,238.64,19.12]
[1758294144471,2.96463219,238.88,238.58,33.34599102]
[1758294144472,2.96463219,238.88,238.6,12.52]
[1758294144668,2.96463219,238.88,238.64,37.46]
[1758294144857,2.96463219,238.88,238.6,12.52]
[1758294145061,2.96463219,238.88,238.65,37.42]
[1758294145263,2.96463219,238.88,238.64,62.02]
[1758294145657,2.96463219,238.88,238.64,56.24]
[1758294145858,6.78,238.87,238.64,56.24]
[1758294146067,2.96463219,238.86,238.64,56.24]
[1758294146263,6.18,238.88,238.63,57.86]
[1758294146469,14.19163619,238.87,238.63,94.84]
[1758294146669,2.96163619,238.86,238.6,12.52]
[1758294146858,11.37,238.87,238.63,69.98]
[1758294147063,2.96214363,238.86,238.6,12.52]
[1758294147259,6.75,238.87,238.66,83.26]
[1758294147663,6.75,238.87,238.66,22.52]
[1758294148260,6.75,238.87,238.67,12.52]
[1758294148866,6.75,238.87,238.77,58.6041]
[1758294149765,6.75,238.87,238.78,58.6017]
[1758294149962,6.75,238.87,238.67,131.62]
[1758294150163,6.63,238.85,238.6,33.0932523]
[1758294150369,2.95675102,238.84,238.56,123.68090747]
[1758294150764,6.63,238.83,238.51,12.32413546]
[1758294150965,2.95675102,238.82,238.6,9.5]
[1758294151171,2.95493687,238.81,238.57,12.52]
[1758294151467,9.58317137,238.8,238.58,16.18]
[1758294151665,126.15,238.85,238.58,16.18]
[1758294151868,2.9534989,238.84,238.58,16.18]
[1758294152064,2.9534989,238.83,238.57,12.52]
[1758294152271,2.9534989,238.82,238.57,12.52]
[1758294152571,2.9534989,238.81,238.6,16.16]
[1758294152767,2.9534989,238.8,238.56,6.06090747]
[1758294152969,2.9522546,238.79,238.59,21.96]
[1758294153169,126.13,238.85,238.56,18.58090747]
[1758294153468,2.95229776,238.84,238.59,13.48]
[1758294153666,2.95229776,238.83,238.6,20.88]
[1758294153863,2.95229776,238.82,238.6,20.88]
[1758294154067,2.95229776,238.81,238.6,20.88]
[1758294154275,2.95229776,238.8,238.6,20.88]
[1758294154476,2.95229776,238.79,238.59,17.32]
[1758294154674,2.95229776,238.78,238.59,17.32]
[1758294154873,2.95229776,238.77,238.59,17.32]
[1758294155178,6.63,238.8,238.59,17.32]
[1758294155475,6.63,238.78,238.55,6.06090747]
[1758294155679,2.95179822,238.77,238.52,34.7]
[1758294155873,2.95179822,238.76,238.52,34.7]
[1758294156074,2.95179822,238.75,238.52,34.7]
[1758294156271,2.95179822,238.74,238.52,34.7]
[1758294156470,2.95179822,238.73,238.52,34.7]
[1758294156675,6.63,238.78,238.52,34.7]
[1758294156877,2.94901755,238.77,238.68,58.6266]
[1758294157070,2.94901755,238.76,238.69,58.6247]
[1758294157272,14.28535854,238.85,238.68,58.6266]
[1758294157273,6.63,238.83,238.7,58.6221]
[1758294157574,9.144e-05,238.82,238.78,58.6027]
[1758294157779,6.63,238.89,238.79,58.5998]
[1758294158178,6.63,238.89,238.83,3.7664]
[1758294158378,6.63,238.89,238.8,58.5977]
[1758294158976,119.04,238.93,238.78,58.6027]
[1758294159175,6.63,238.91,238.78,58.6027]
[1758294159379,119.04,238.93,238.78,58.6027]
[1758294159575,119.04,238.93,238.7,58.6217]
[1758294159576,6.06090747,238.91,238.7,58.6217]
[1758294159879,4.45815107,238.87,238.67,58.6299]
[1758294160067,6.63,238.83,238.67,58.6299]
[1758294160272,118.86,238.82,238.68,58.627]
[1758294160470,118.86,238.82,238.69,58.6251]
[1758294160678,118.86,238.82,238.68,58.627]
[1758294160679,6.63,238.83,238.7,58.6222]
[1758294160977,118.74,238.82,238.7,58.6222]
[1758294161177,118.74,238.82,238.73,3.768]
[1758294161778,118.74,238.82,238.75,3.7677]
[1758294161983,6.63,238.83,238.75,3.7677]
[1758294163484,6.63,238.83,238.65,58.6343]
[1758294163682,6.63,238.83,238.71,58.6199]
[1758294163883,6.63,238.83,238.69,58.6239]
[1758294164281,6.63,238.83,238.65,58.6343]
[1758294164477,11.08815107,238.83,238.65,58.6343]
[1758294164673,11.08815107,238.83,238.67,58.6292]
[1758294165279,6.63,238.83,238.69,58.6243]
[1758294165981,6.63,238.83,238.73,3.768]
[1758294167082,6.63,238.83,238.75,3.7678]
[1758294167276,6.63,238.83,238.65,58.6343]
[1758294167481,6.63,238.82,238.65,58.6343]
[1758294167786,6.63,238.82,238.69,3.7686]
[1758294167787,4.45815107,238.8,238.69,3.7686]
[1758294167978,4.45815107,238.8,238.62,58.6405]
[1758294168176,4.45815107,238.8,238.64,58.6366]
[1758294168376,6.63,238.78,238.66,13.7691]
[1758294168576,4.45815107,238.77,238.66,10.0]
[1758294168781,6.63,238.78,238.66,68.6306]
[1758294168982,105.98,238.77,238.66,68.6306]
[1758294169384,6.63,238.78,238.68,58.6275]
[1758294169586,6.63,238.78,238.66,68.6306]
[1758294169785,2.9422257,238.77,238.66,13.7691]
[1758294169984,6.83446915,238.84,238.66,13.7691]
[1758294169985,4.45815107,238.81,238.67,6.64]
[1758294170187,4.45815107,238.8,238.67,6.64]
[1758294170593,122.37815107,238.81,238.67,6.64]
[1758294170790,122.37815107,238.81,238.7,3.7685]
[1758294170985,117.92,238.81,238.69,58.6253]
[1758294171193,117.92,238.81,238.7,58.6228]
[1758294171396,4.45815107,238.83,238.71,58.6188]
[1758294171594,117.84,238.82,238.69,58.6253]
[1758294172092,124.47,238.82,238.71,58.6202]
[1758294172488,4.45815107,238.85,238.74,58.6115]
[1758294172695,4.45815107,238.88,238.77,58.6045]
[1758294172895,117.7,238.87,238.75,58.6103]
[1758294173192,122.15815107,238.87,238.75,58.6103]
[1758294173795,122.15815107,238.87,238.78,3.7672]
[1758294173993,4.45815107,238.84,238.64,6.64]
[1758294174299,6.63,238.81,238.71,58.6194]
[1758294174600,6.63,238.81,238.7,58.6225]
[1758294174601,4.45815107,238.84,238.73,58.6151]
[1758294174894,4.45815107,238.83,238.71,58.6199]
[1758294175095,122.57815107,238.84,238.76,3.7676]
[1758294175291,122.57815107,238.84,238.75,58.6102]
[1758294175496,118.12,238.84,238.8,3.767]
[1758294175695,124.75,238.84,238.8,3.767]
[1758294175892,118.12,238.84,238.74,6.64]
[1758294176194,118.12,238.84,238.77,3.7674]
[1758294176393,11.08815107,238.8,238.66,16.64]
[1758294176597,118.5,238.79,238.69,58.6252]
[1758294176993,118.5,238.79,238.73,3.768]
[1758294177399,122.95815107,238.79,238.73,3.768]
[1758294178099,4.45815107,238.78,238.73,3.768]
[1758294178400,118.5,238.79,238.66,16.64]
[1758294178401,4.45815107,238.77,238.66,16.64]
[1758294178600,6.06090747,238.68,238.46,14.86456312]
[1758294178798,19.65,238.66,238.33,58.7135]
[1758294179102,6.83446915,238.69,238.53,58.6646]
[1758294179301,6.83446915,238.72,238.6,58.6469]
[1758294179500,1.04770164,238.71,238.55,58.6595]
[1758294179693,7.12,238.69,238.53,58.664]
[1758294179895,1.04770164,238.68,238.55,58.6592]
[1758294180094,1.04770164,238.68,238.52,58.6664]
[1758294180298,1.04770164,238.68,238.54,58.662]
[1758294180497,7.12,238.69,238.54,58.662]
[1758294180694,7.12,238.69,238.49,58.673]
[1758294180895,7.12,238.67,238.48,58.6758]
[1758294181198,7.12,238.65,238.46,7.17]
[1758294181400,7.12,238.63,238.46,7.17]
[1758294181606,13.95446915,238.63,238.46,10.9422]
[1758294181999,2.91160501,238.62,238.46,10.9422]
[1758294182199,7.12,238.6,238.46,10.9422]
[1758294182507,2.91160501,238.59,238.49,58.6744]
[1758294182704,2.91160501,238.58,238.53,58.6646]
[1758294183004,2.91160501,238.57,238.55,3.7708]
[1758294183201,2.91160501,238.56,238.49,58.6744]
[1758294183503,2.91160501,238.55,238.49,58.6744]
[1758294183700,2.91160501,238.54,238.52,3.7714]
[1758294183898,5.01e-06,238.53,238.52,3.7714]
[1758294184293,7.12,238.66,238.56,3.7707]
[1758294184597,135.74,238.66,238.56,3.7707]
[1758294185200,6.83446915,238.73,238.6,58.6461]
[1758294185407,39.1,238.75,238.63,58.6385]
[1758294185707,39.1,238.75,238.6,58.6473]
[1758294185906,39.1,238.75,238.61,58.6449]
[1758294186208,39.1,238.75,238.6,58.6473]
[1758294186209,39.1,238.75,238.6,3.77]
[1758294186399,9.82810747,238.79,238.62,58.642]
[1758294186400,128.5,238.74,238.62,58.642]
[1758294186599,128.5,238.74,238.6,58.6468]
[1758294186799,128.5,238.74,238.63,58.6395]
[1758294186997,12.53,238.64,238.39,7.17]
[1758294187198,7.12,238.62,238.44,7.17]
[1758294187408,7.12,238.62,238.46,3.7722]
[1758294187802,10.84083438,238.62,238.46,3.7722]
[1758294188199,10.84083438,238.62,238.44,7.17]
[1758294188404,128.86,238.61,238.45,58.6837]
[1758294188704,7.12,238.6,238.44,7.17]
[1758294188902,6.83446915,238.59,238.44,7.17]
[1758294189103,3.72083438,238.56,238.37,58.7032]
[1758294189408,128.68,238.55,238.4,7.17]
[1758294189701,7.12,238.54,238.4,7.17]
[1758294189906,128.58,238.53,238.4,7.17]
[1758294190498,128.58,238.53,238.41,3.7731]
[1758294190698,7.12,238.54,238.42,58.6913]
[1758294191006,7.12,238.54,238.44,3.7726]
[1758294191213,128.4,238.55,238.44,69.629]
[1758294191404,7.12,238.54,238.38,58.7012]
[1758294191600,7.12,238.54,238.39,58.6978]
[1758294191801,7.12,238.54,238.4,3.7732]
[1758294192204,7.12,238.4,238.31,23.19622509]
[1758294192507,5.24,238.32,238.18,58.7497]
[1758294192699,5.24,238.39,238.24,58.7353]
[1758294192897,5.24,238.39,238.26,0.84]
[1758294193102,5.24,238.39,238.3,0.84]
[1758294193302,3.72083438,238.38,238.25,0.84]
[1758294193500,3.72083438,238.38,238.23,7.17]
[1758294193699,1.04931565,238.37,238.23,7.17]
[1758294193898,1.04931565,238.36,238.28,0.84]
[1758294194212,5.24,238.34,238.17,7.17]
[1758294194509,3.72083438,238.32,238.21,0.84]
[1758294194809,1.04931565,238.31,238.21,0.84]
[1758294194999,1.04931565,238.31,238.17,7.17]
[1758294195210,1.04931565,238.31,238.18,62.527]
[1758294195499,5.24,238.34,238.18,62.527]
[1758294195705,1.04954426,238.33,238.29,0.84]
[1758294195910,133.54083438,238.38,238.31,0.84]
[1758294196113,1.04944076,238.37,238.31,0.84]
[1758294196410,2.87061832,238.36,238.31,0.84]
[1758294196600,2.87061832,238.35,238.24,69.6799]
[1758294196800,2.87061832,238.34,238.32,0.84]
[1758294197100,5.24,238.49,238.37,58.7037]
[1758294197301,9.23278074,238.56,238.22,176.219]
[1758294197302,3.72083438,238.59,238.49,0.84]
[1758294197500,3.72083438,238.59,238.43,58.689]
[1758294197501,2.87155614,238.58,238.5,0.84]
[1758294197805,2.87155614,238.57,238.46,7.17]
[1758294198007,2.87155614,238.56,238.46,7.17]
[1758294198312,2.87155614,238.55,238.46,7.17]
[1758294198609,2.87090196,238.54,238.5,0.84]
[1758294198810,2.87090196,238.53,238.5,0.84]
[1758294199012,2.87090196,238.52,238.5,0.84]
[1758294199210,322.32,238.6,238.5,0.84]
[1758294199512,0.72998825,238.53,238.5,0.84]
[1758294199712,132.85090751,238.52,238.34,58.7098]
[1758294200005,5.24,238.5,238.34,7.17]
[1758294200211,2.87090751,238.49,238.4,0.84]
[1758294200408,2.87090751,238.48,238.4,0.84]
[1758294200609,3.60111787,238.47,238.4,0.84]
[1758294200808,2.87090751,238.46,238.41,0.84]
[1758294201008,2.87090751,238.45,238.41,0.84]
[1758294201208,2.87090751,238.44,238.41,0.84]
[1758294201512,0.73021036,238.47,238.42,0.84]
[1758294201810,0.73021036,238.47,238.37,58.702]
[1758294201811,2.86876381,238.46,238.37,58.702]
[1758294202013,0.73021036,238.47,238.45,0.84]
[1758294202702,0.73021036,238.47,238.36,58.7044]
[1758294202703,129.56,238.51,238.46,0.84]
[1758294202912,2.86614832,238.5,238.42,3.773]
[1758294203116,130.29003419,238.51,238.42,3.773]
[1758294203316,2.86628336,238.5,238.42,3.773]
[1758294203612,0.73003419,238.51,238.44,62.4589]
[1758294203912,0.73003419,238.51,238.5,0.84]
[1758294204313,129.22,238.58,238.5,0.84]
[1758294204508,0.72985812,238.56,238.48,58.675]
[1758294204810,0.72985812,238.56,238.53,0.84]
[1758294205108,0.72985812,238.56,238.54,0.84]
[1758294205315,0.72985812,238.56,238.55,0.84]
[1758294206107,129.0,238.59,238.55,0.84]
[1758294206314,2.87056,238.58,238.48,7.17]
[1758294206512,129.0,238.59,238.57,0.84]
[1758294206714,2.8712421,238.58,238.57,0.84]
[1758294206918,32.9677211,238.66,238.57,58.6543]
[1758294207114,128.68,238.65,238.63,0.84]
[1758294207310,0.72957504,238.66,238.56,7.17]
[1758294207511,0.72957504,238.66,238.52,58.6659]
[1758294207715,0.72957504,238.66,238.59,0.84]
[1758294207921,0.72957504,238.66,238.57,58.6537]
[1758294208120,0.72957504,238.66,238.63,0.84]
[1758294209016,0.72957504,238.66,238.57,58.6538]
[1758294209218,0.72957504,238.66,238.63,0.84]
[1758294209520,0.72957504,238.66,238.6,7.0]
[1758294209715,0.72957504,238.66,238.65,0.84]
[1758294210114,322.34,238.75,238.65,0.84]
[1758294210313,128.38,238.71,238.6,7.0]
[1758294210613,128.38,238.71,238.6,10.7701]
[1758294210819,128.38,238.71,238.67,0.84]
[1758294211218,133.62,238.71,238.67,0.84]
[1758294212217,128.38,238.71,238.6,7.0]
[1758294212415,5.24,238.7,238.59,3.7702]
[1758294212620,5.24,238.7,238.64,0.84]
[1758294212916,8.96083438,238.7,238.56,3.7707]
[1758294213117,4.48499455,238.69,238.6,0.84]
[1758294213416,4.48499455,238.69,238.54,7.0]
[1758294214014,4.48499455,238.69,238.55,3.7709]
[1758294214220,4.48499455,238.68,238.55,3.7709]
[1758294216222,4.48499455,238.67,238.54,7.0]
[1758294216424,4.48499455,238.68,238.62,0.84]
[1758294216624,127.2,238.67,238.62,0.84]
[1758294216822,4.48499455,238.72,238.69,0.84]
[1758294217025,0.72939919,238.73,238.71,0.84]
[1758294217218,0.72939919,238.73,238.65,7.0]
[1758294217516,0.72939919,238.73,238.7,0.84]
[1758294218121,0.72939919,238.73,238.65,58.6338]
[1758294218418,0.72939919,238.73,238.68,58.6275]
[1758294218621,0.72939919,238.73,238.52,303.2408]
[1758294218622,3.72083438,238.71,238.39,176.0959]
[1758294218828,4.48499455,238.65,238.42,58.6913]
[1758294219019,11.09499455,238.62,238.37,58.7028]
[1758294219220,4.48499455,238.6,238.42,3.7729]
[1758294219420,7.3636586,238.59,238.37,58.7028]
[1758294219729,3.9272266,238.58,238.37,58.7028]
[1758294219915,99.6472266,238.57,238.44,3.7726]
[1758294220115,2.87866405,238.56,238.44,3.7726]
[1758294220316,4.76944685,238.55,238.37,58.7028]
[1758294220521,3.92727652,238.54,238.4,3.7733]
[1758294220715,2.87866405,238.53,238.4,3.7733]
[1758294220915,2.87866405,238.52,238.4,3.7733]
[1758294221125,2.87866405,238.51,238.4,3.7733]
[1758294221316,2.87866405,238.5,238.4,3.7733]
[1758294221519,2.87866405,238.49,238.4,3.7733]
[1758294221718,2.87866405,238.48,238.4,3.7733]
[1758294221926,2.87866405,238.47,238.35,3.774]
[1758294222325,2.87866405,238.47,238.33,58.7128]
[1758294222828,2.87866405,238.47,238.37,3.7737]
[1758294223318,2.87866405,238.47,238.32,10.7744]
[1758294223520,2.87866405,238.47,238.33,58.7128]
[1758294223723,1.04896666,238.46,238.32,7.0]
[1758294223924,2.87866405,238.45,238.32,7.0]
[1758294224124,2.87866405,238.44,238.32,7.0]
[1758294224325,132.06499455,238.48,238.32,7.0]
[1758294224326,2.87866405,238.43,238.32,7.0]
[1758294224526,2.87866405,238.42,238.32,7.0]
[1758294224829,10.33083438,238.51,238.32,7.0]
[1758294224830,2.87866405,238.41,238.37,7.0]
[1758294225030,113.54,238.47,238.37,7.0]
[1758294225230,2.88522164,238.46,238.37,7.0]
[1758294225429,2.88522164,238.45,238.37,7.0]
[1758294225631,2.88522164,238.44,238.37,10.7736]
[1758294225830,2.88522164,238.43,238.27,65.7266]
[1758294226028,2.88522164,238.42,238.27,65.7266]
[1758294226228,3.93440244,238.41,238.27,7.0]
[1758294226425,6.61,238.44,238.27,7.0]
[1758294226426,3.93450062,238.4,238.27,7.0]
[1758294226625,2.88522164,238.39,238.27,7.0]
[1758294226826,2.88522164,238.38,238.27,7.0]
[1758294227026,2.88522164,238.37,238.29,58.7231]
[1758294227226,2.88522164,238.36,238.27,7.0]
[1758294227532,2.88522164,238.35,238.22,58.7404]
[1758294227724,2.88522164,238.34,238.23,3.7759]
[1758294227920,2.88162859,238.33,238.23,3.7759]
[1758294228123,2.88162859,238.32,238.23,3.7759]
[1758294228321,6.61,238.39,238.23,3.7759]
[1758294228528,3.92987247,238.38,238.23,3.7759]
[1758294228729,6.61,238.39,238.23,3.7759]
[1758294228730,2.88051813,238.37,238.25,3.7755]